bitfinex/quotes_SOLUSD_20250809
["timestamp","ask_amount","ask_price","bid_price","bid_amount"]
[1754714767510,5.79582302,178.14,178.12,1e-08]
[1754714767899,0.71,178.13,178.12,1e-08]
[1754714768315,6.3238775,178.13,178.12,1e-08]
[1754714773313,11.40970052,178.13,178.12,1e-08]
[1754714774208,6.3238775,178.13,178.12,1e-08]
[1754714775031,11.40970052,178.13,178.12,1e-08]
[1754714775327,6.3238775,178.13,178.12,1e-08]
[1754714775527,11.40970052,178.13,178.12,1e-08]
[1754714775939,37.40970052,178.13,178.12,1e-08]
[1754714776127,52.51591609,178.13,178.12,1e-08]
[1754714777441,52.65807766,178.13,178.12,1e-08]
[1754714779114,52.80023923,178.13,178.12,1e-08]
[1754714781532,47.71441621,178.13,178.12,1e-08]
[1754714781718,52.09023923,178.13,178.12,1e-08]
[1754714782215,5.61362319,178.14,178.12,0.66000001]
[1754714782419,0.03,178.15,178.13,5.08582302]
[1754714782617,0.03,178.15,178.12,0.66000001]
[1754714782807,0.03,178.15,178.14,3.26963431]
[1754714783207,0.03,178.15,178.14,3.92963431]
[1754714784021,0.03,178.15,178.14,0.66]
[1754714785152,0.03,178.15,178.14,5.76889775]
[1754714785514,0.03,178.15,178.14,0.66]
[1754714787125,0.03,178.15,178.14,5.76889775]
[1754714787327,0.03,178.15,178.14,0.66]
[1754714787642,0.03,178.15,178.14,5.76889775]
[1754714788338,0.03,178.15,178.14,11.38246011]
[1754714788845,0.03,178.15,178.14,11.66678325]
[1754714791018,0.03,178.15,178.14,13.91466825]
[1754714791531,0.03,178.15,178.14,11.66678325]
[1754714791843,0.03,178.15,178.14,13.91466825]
[1754714792420,0.03,178.15,178.14,11.66678325]
[1754714792625,0.03,178.15,178.14,13.91466925]
[1754714792850,0.03,178.18,178.15,0.28432314]
[1754714793155,0.03,178.18,178.17,5.39322089]
[1754714793319,0.03,178.19,178.18,0.28432314]
[1754714793518,0.03,178.19,178.18,51.93211864]
[1754714794349,0.03,178.19,178.18,57.5444208]
[1754714794532,0.03,178.19,178.18,52.43552305]
[1754714798749,0.03,178.19,178.18,57.26009766]
[1754714799449,0.03,178.21,178.2,26.0]
[1754714799644,0.03,178.21,178.2,36.2177955]
[1754714799854,0.03,178.23,178.21,0.28432314]
[1754714800059,0.03,178.25,178.22,46.49889775]
[1754714800258,0.03,178.25,178.24,5.10889775]
[1754714800639,0.03,178.25,178.24,5.81889775]
[1754714801540,0.03,178.27,178.24,11.42931067]
[1754714801752,0.03,178.27,178.26,5.10889775]
[1754714801961,0.03,178.27,178.26,45.76889775]
[1754714802150,0.03,178.27,178.26,46.47889775]
[1754714802960,0.03,178.27,178.26,46.76322089]
[1754714803166,0.03,178.27,178.26,51.87211864]
[1754714803336,0.03,178.28,178.26,51.87211864]
[1754714803532,0.03,178.28,178.27,16.53726428]
[1754714803956,0.03,178.28,178.27,11.42836653]
[1754714804151,0.03,178.28,178.27,16.53726428]
[1754714806647,0.03,178.31,178.27,57.17726428]
[1754714806857,0.03,178.31,178.29,36.2177955]
[1754714807366,0.03,178.31,178.29,36.9277955]
[1754714807540,0.03,178.31,178.3,46.45889775]
[1754714808448,0.03,178.33,178.3,46.45889775]
[1754714808641,0.03,178.33,178.32,5.10889775]
[1754714809471,0.03,178.33,178.32,5.81889775]
[1754714809643,0.03,178.33,178.32,37.42679366]
[1754714810461,0.03,178.33,178.32,31.10889775]
[1754714810674,0.03,178.33,178.32,71.72889775]
[1754714811361,0.03,178.33,178.32,72.43889775]
[1754714812763,0.73,178.33,178.3,2.95574]
[1754714813058,0.03,178.33,178.32,45.72889775]
[1754714813570,0.03,178.33,178.32,46.43889775]
[1754714814072,0.03,178.35,178.32,46.43889775]
[1754714814251,0.03,178.35,178.34,5.10889775]
[1754714814444,0.03,178.35,178.34,45.70889775]
[1754714814669,0.03,178.35,178.34,46.41889775]
[1754714814871,0.1,178.36,178.35,5.10889775]
[1754714815066,0.03,178.39,178.36,10.2177955]
[1754714815268,0.03,178.39,178.38,10.2177955]
[1754714815452,0.03,178.39,178.34,5.60722731]
[1754714815657,0.03,178.39,178.38,5.10889775]
[1754714815855,0.03,178.39,178.38,45.70889775]
[1754714816046,0.73,178.39,178.38,45.70889775]
[1754714818263,6.33569538,178.39,178.38,40.6]
[1754714820263,20.34993384,178.39,178.35,5.10889775]
[1754714820462,0.7,178.38,178.36,40.58]
[1754714822362,5.60632393,178.37,178.36,40.58]
[1754714822559,6.30632393,178.37,178.36,40.58]
[1754714823087,6.30632393,178.37,178.35,40.58]
[1754714823259,0.7,178.36,178.33,40.58]
[1754714823577,0.7,178.36,178.33,45.68889775]
[1754714824365,5.60695262,178.35,178.34,5.10889775]
[1754714824657,6.31695262,178.35,178.34,5.10889775]
[1754714824847,5.60695262,178.35,178.34,5.10889775]
[1754714826050,6.31632393,178.37,178.34,5.10889775]
[1754714826253,6.31632393,178.37,178.35,40.56]
[1754714826459,5.60632393,178.37,178.36,5.10889775]
[1754714827060,5.6060607,178.38,178.36,5.10889775]
[1754714827260,5.6060607,178.38,178.37,45.66889775]
[1754714828074,6.3160607,178.38,178.37,45.66889775]
[1754714828267,6.3160607,178.38,178.37,40.56]
[1754714829282,6.3160607,178.38,178.35,40.56]
[1754714829587,0.71,178.37,178.35,40.56]
[1754714829966,6.31663825,178.36,178.35,40.56]
[1754714830762,5.60635153,178.37,178.35,45.66889775]
[1754714831479,5.60635153,178.37,178.35,40.56]
[1754714831681,5.60635153,178.37,178.35,45.66889775]
[1754714833178,5.60635153,178.37,178.35,46.36889775]
[1754714833760,5.60635153,178.37,178.35,45.66889775]
[1754714833964,6.31635153,178.37,178.35,45.66889775]
[1754714834683,0.71,178.36,178.29,31.10889775]
[1754714834888,0.71,178.36,178.33,5.10889775]
[1754714835092,5.10889775,178.38,178.34,40.54]
[1754714835391,0.71,178.35,178.34,40.54]
[1754714836495,0.71,178.35,178.29,0.7]
[1754714836670,5.60726701,178.34,178.33,5.10889775]
[1754714836870,6.31726701,178.34,178.33,5.10889775]
[1754714837073,6.31726701,178.34,178.32,45.64889775]
[1754714837273,6.31726701,178.34,178.32,40.54]
[1754714837989,0.71,178.33,178.3,5.10889775]
[1754714838292,5.60726701,178.34,178.3,45.64889775]
[1754714838489,0.71,178.33,178.3,45.64889775]
[1754714838701,5.60789591,178.32,178.3,45.64889775]
[1754714839001,5.60789591,178.32,178.31,5.80889775]
[1754714840192,5.60789591,178.32,178.31,0.7]
[1754714840491,5.60789591,178.32,178.31,5.10889775]
[1754714840695,5.60789591,178.32,178.3,40.54]
[1754714840901,5.60758145,178.33,178.31,5.10889775]
[1754714841267,6.31758145,178.33,178.31,5.10889775]
[1754714841470,6.31758145,178.33,178.3,40.54]
[1754714841694,6.31758145,178.33,178.31,5.10889775]
[1754714841904,14.01781932,178.35,178.29,0.76]
[1754714841905,0.71,178.32,178.29,0.06]
[1754714842198,0.71,178.31,178.29,0.06]
[1754714842379,0.71,178.31,178.29,5.16889775]
[1754714842877,0.71,178.33,178.29,0.76]
[1754714843283,0.71,178.33,178.29,5.86889775]
[1754714843694,20.33477194,178.35,178.31,5.10889775]
[1754714843992,20.33477194,178.35,178.31,5.80889775]
[1754714844579,19.62477194,178.35,178.31,5.80889775]
[1754714844796,0.71,178.34,178.3,5.10889775]
[1754714844986,0.71,178.33,178.3,5.10889775]
[1754714845306,0.71,178.33,178.3,5.80889775]
[1754714845800,5.60789591,178.32,178.3,5.10889775]
[1754714845978,5.60789591,178.32,178.31,0.7]
[1754714846804,5.60789591,178.32,178.3,5.10889775]
[1754714847101,6.31789591,178.32,178.29,5.86889775]
[1754714848397,5.60789591,178.32,178.29,5.16889775]
[1754714848693,0.71,178.31,178.29,0.06]
[1754714849199,0.71,178.3,178.29,0.06]
[1754714850102,6.31852495,178.3,178.29,0.06]
[1754714853704,6.25852495,178.3,178.29,0.06]
[1754714856201,11.3674227,178.3,178.29,0.06]
[1754714856704,6.25852495,178.3,178.29,0.06]
[1754714857885,5.60852495,178.3,178.29,0.06]
[1754714858314,5.60852495,178.3,178.29,0.72]
[1754714858615,19.6270378,178.33,178.29,0.72]
[1754714858782,19.6270378,178.33,178.29,5.82889775]
[1754714858990,26.0,178.31,178.3,0.66]
[1754714859194,0.65,178.32,178.29,0.06]
[1754714859608,0.65,178.31,178.29,0.06]
[1754714860410,5.60852495,178.3,178.29,0.06]
[1754714862530,5.60821042,178.31,178.29,0.06]
[1754714862897,6.25821042,178.31,178.29,0.06]
[1754714863225,5.60821042,178.31,178.29,0.06]
[1754714863530,0.65,178.3,178.29,0.06]
[1754714864224,5.60852495,178.3,178.29,0.06]
[1754714865220,5.60821042,178.31,178.29,0.06]
[1754714865413,6.25821042,178.31,178.29,0.06]
[1754714867297,0.65,178.3,178.29,0.06]
[1754714869415,6.25852495,178.3,178.29,0.06]
[1754714869612,5.60852495,178.3,178.29,0.06]
[1754714871414,6.25852495,178.3,178.29,0.06]
[1754714877038,11.3674227,178.3,178.29,0.06]
[1754714880137,52.61579984,178.3,178.29,1e-08]
[1754714880334,54.71459357,178.3,178.29,1e-08]
[1754714880710,15.10621557,178.28,178.27,1e-08]
[1754714881017,60.91943646,178.28,178.27,1e-08]
[1754714881214,61.56943646,178.28,178.27,1e-08]
[1754714881441,41.39053871,178.26,178.25,1e-08]
[1754714881646,46.49943646,178.26,178.25,1e-08]
[1754714881944,47.14943646,178.26,178.25,1e-08]
[1754714882466,72.02978346,178.26,178.25,1e-08]
[1754714882624,5.60978346,178.26,178.25,0.66000001]
[1754714882967,66.42,178.29,178.25,5.76889776]
[1754714883244,5.60915413,178.28,178.26,0.66]
[1754714883569,5.60915413,178.28,178.25,5.10889776]
[1754714883718,5.60915413,178.28,178.27,0.72]
[1754714884133,5.60915413,178.28,178.25,0.72000001]
[1754714884442,5.10889775,178.27,178.25,1e-08]
[1754714884649,5.60915413,178.28,178.25,1e-08]
[1754714884650,11.41805188,178.28,178.25,1e-08]
[1754714884951,5.60915413,178.28,178.26,0.72]
[1754714885176,5.60915413,178.28,178.26,5.82889775]
[1754714885330,5.60915413,178.28,178.27,0.72]
[1754714886436,5.60915413,178.28,178.25,5.82889776]
[1754714886625,5.60915413,178.28,178.26,0.72]
[1754714888127,5.60915413,178.28,178.25,5.10889776]
[1754714888322,5.10889775,178.31,178.27,0.72]
[1754714888524,5.60789591,178.32,178.29,5.10889775]
[1754714888728,5.60789591,178.32,178.3,0.72]
[1754714888943,5.60789591,178.32,178.29,5.10889775]
[1754714889147,5.60789591,178.32,178.31,0.72]
[1754714889762,5.60789591,178.32,178.29,0.72]
[1754714889967,6.30789591,178.32,178.28,5.10889775]
[1754714890244,0.7,178.31,178.26,5.82889775]
[1754714890438,6.30852495,178.3,178.25,1e-08]
[1754714890635,6.30852495,178.3,178.25,5.10889776]
[1754714890636,11.4174227,178.3,178.25,5.10889776]
[1754714890950,5.10889775,178.28,178.25,1e-08]
[1754714891540,0.7,178.28,178.25,1e-08]
[1754714891740,0.7,178.27,178.25,1e-08]
[1754714892244,5.10889775,178.29,178.25,1e-08]
[1754714892245,0.7,178.29,178.25,5.82889776]
[1754714892452,5.60915413,178.28,178.26,0.72]
[1754714893651,5.60915413,178.28,178.25,0.72000001]
[1754714894156,5.60915413,178.28,178.26,0.72]
[1754714894754,5.60883953,178.29,178.25,5.82889776]
[1754714895050,11.41773728,178.29,178.25,0.72000001]
[1754714895752,25.4398361,178.29,178.25,0.72000001]
[1754714896738,5.60946878,178.27,178.25,0.72000001]
[1754714896936,5.60946878,178.27,178.25,1e-08]
[1754714897141,0.7,178.26,178.25,1e-08]
[1754714897738,5.80889775,178.26,178.25,1e-08]
[1754714898862,11.41868121,178.26,178.25,1e-08]
[1754714902444,6.30978346,178.26,178.25,1e-08]
[1754714902645,5.60978346,178.26,178.25,1e-08]
[1754714905766,10.71868121,178.26,178.25,1e-08]
[1754714906070,5.60978346,178.26,178.25,1e-08]
[1754714906460,26.52489678,178.26,178.25,1e-08]
[1754714907467,28.62387039,178.26,178.25,1e-08]
[1754714908378,26.52489678,178.26,178.25,1e-08]
[1754714909667,26.66705835,178.26,178.25,1e-08]
[1754714910178,93.16921992,178.26,178.25,1e-08]
[1754714910550,95.26744181,178.26,178.25,1e-08]
[1754714910745,15.39053871,178.24,178.23,0.06]
[1754714910964,60.85943646,178.24,178.23,0.06]
[1754714911176,56.45053871,178.24,178.23,1e-08]
[1754714911473,61.55943646,178.24,178.23,1e-08]
[1754714912273,67.16984938,178.24,178.23,1e-08]
[1754714913549,26.0,178.22,178.21,1e-08]
[1754714913750,86.57511332,178.22,178.21,1e-08]
[1754714914080,87.28511332,178.22,178.21,1e-08]
[1754714914374,92.89615585,178.22,178.21,1e-08]
[1754714916563,92.18615585,178.22,178.21,1e-08]
[1754714916764,87.0772581,178.22,178.21,1e-08]
[1754714916964,92.18615585,178.22,178.21,1e-08]
[1754714917363,93.18047899,178.22,178.21,1e-08]
[1754714919580,87.0772581,178.22,178.21,0.68000001]
[1754714919783,92.18615585,178.22,178.21,0.68000001]
[1754714919974,31.61104253,178.22,178.21,0.68000001]
[1754714921262,5.61104253,178.22,178.21,5.78889776]
[1754714921458,5.60946878,178.27,178.21,5.78889776]
[1754714921660,5.60946878,178.27,178.24,5.10889775]
[1754714921973,0.14216157,178.26,178.23,5.10889775]
[1754714922157,0.14216157,178.26,178.21,1e-08]
[1754714922358,5.60946878,178.27,178.24,0.68]
[1754714922667,0.14216157,178.26,178.24,0.68]
[1754714923059,5.61009817,178.25,178.24,0.68]
[1754714923557,5.61009817,178.25,178.21,1e-08]
[1754714923784,5.61009817,178.25,178.22,5.78889775]
[1754714925181,5.61072771,178.23,178.21,1e-08]
[1754714925680,21.20943646,178.22,178.21,1e-08]
[1754714926068,61.56943646,178.22,178.21,1e-08]
[1754714926265,87.56943646,178.22,178.21,1e-08]
[1754714927088,26.28432314,178.22,178.21,1e-08]
[1754714927272,31.89536567,178.22,178.21,0.68000001]
[1754714927884,31.89536567,178.22,178.21,1e-08]
[1754714928464,52.11047899,178.22,178.21,1e-08]
[1754714928687,52.82047899,178.22,178.21,1e-08]
[1754714929279,47.00158124,178.22,178.21,1e-08]
[1754714931193,52.82047899,178.22,178.21,1e-08]
[1754714931366,46.26134207,178.22,178.21,1e-08]
[1754714931977,31.1551265,178.22,178.21,0.68000001]
[1754714932470,5.61104253,178.22,178.21,0.68000001]
[1754714933288,45.95009817,178.25,178.21,5.78889776]
[1754714933594,0.03,178.24,178.22,0.68]
[1754714933969,0.03,178.24,178.23,0.68]
[1754714934578,0.03,178.24,178.21,1e-08]
[1754714934790,26.74,178.24,178.21,0.68000001]
[1754714934992,0.71,178.23,178.21,1e-08]
[1754714935294,5.61072771,178.23,178.21,1e-08]
[1754714936190,6.32072771,178.23,178.21,1e-08]
[1754714936983,5.61072771,178.23,178.21,1e-08]
[1754714937181,5.61072771,178.23,178.22,0.68]
[1754714937499,5.61072771,178.23,178.22,5.78889775]
[1754714939194,5.64044261,178.24,178.22,5.78889775]
[1754714939504,0.03,178.24,178.23,5.78889775]
[1754714943888,0.03,178.24,178.23,0.68]
[1754714944104,0.03,178.24,178.23,5.78889775]
[1754714946390,0.03,178.24,178.23,0.68]
[1754714946695,0.03,178.24,178.23,5.78889775]
[1754714948407,0.03,178.24,178.23,0.68]
[1754714948614,0.03,178.24,178.23,5.78889775]
[1754714953003,0.03,178.24,178.23,11.39962546]
[1754714953211,0.03,178.28,178.23,11.39962546]
[1754714953520,0.03,178.28,178.27,5.10889775]
[1754714954018,0.03,178.28,178.27,10.9077955]
[1754714954316,0.03,178.28,178.27,16.51726428]
[1754714955825,0.03,178.28,178.27,11.40836653]
[1754714957019,0.03,178.28,178.27,5.79889775]
[1754714958220,0.03,178.28,178.27,5.10889775]
[1754714958418,0.73,178.28,178.27,5.10889775]
[1754714958923,0.03,178.28,178.27,5.10889775]
[1754714959814,5.63915413,178.28,178.27,5.10889775]
[1754714960524,6.33915413,178.28,178.27,5.10889775]
[1754714961111,6.33915413,178.28,178.25,5.10889775]
[1754714961318,0.7,178.27,178.25,5.10889775]
[1754714961514,0.7,178.26,178.25,5.10889775]
[1754714961714,15.10621557,178.25,178.22,1e-08]
[1754714961919,15.10621557,178.25,178.2,1e-08]
[1754714961920,15.10621557,178.21,178.2,1e-08]
[1754714962225,20.21511332,178.21,178.19,1e-08]
[1754714962427,20.91511332,178.2,178.19,1e-08]
[1754714963005,15.10621557,178.19,178.14,5.10889775]
[1754714963211,15.80621557,178.19,178.14,5.10889775]
[1754714963418,0.7,178.18,178.14,5.10889775]
[1754714964833,0.7,178.18,178.15,5.16889775]
[1754714965510,6.31230216,178.18,178.15,5.16889775]
[1754714965709,6.31230216,178.18,178.15,0.06]
[1754714965919,6.31230216,178.18,178.16,5.10889775]
[1754714966742,6.31230216,178.18,178.15,5.16889775]
[1754714967318,6.31230216,178.18,178.15,0.06]
[1754714969129,26.52741548,178.18,178.15,0.06]
[1754714969334,20.91511332,178.17,178.15,0.06]
[1754714969719,20.91511332,178.16,178.15,0.06]
[1754714970126,26.52804551,178.16,178.15,0.06]
[1754714970326,21.41914776,178.16,178.15,0.06]
[1754714975742,20.71914776,178.16,178.15,0.06]
[1754714976318,5.61293219,178.16,178.15,0.78]
[1754714976540,5.61293219,178.16,178.15,5.88889775]
[1754714978644,19.67250345,178.19,178.15,5.88889775]
[1754714978936,19.67250345,178.19,178.16,5.82889775]
[1754714980551,20.37250345,178.19,178.16,5.82889775]
[1754714980754,0.7,178.18,178.15,0.06]
[1754714980943,0.7,178.17,178.15,0.06]
[1754714982163,6.31293219,178.16,178.15,0.06]
[1754714983261,5.61293219,178.16,178.15,0.06]
[1754714983971,5.61261716,178.17,178.15,0.06]
[1754714986749,31.80889775,178.16,178.15,0.06]
[1754714987251,26.7,178.16,178.15,0.06]
[1754714988055,32.31293219,178.16,178.15,0.06]
[1754714988254,5.61293219,178.16,178.15,0.06]
[1754714988467,5.61293219,178.16,178.15,0.78]
[1754714989471,5.61261716,178.17,178.15,0.78]
[1754714989770,5.61261716,178.17,178.16,0.72]
[1754714990664,5.61261716,178.17,178.15,5.16889775]
[1754714990848,5.61261716,178.17,178.15,0.78]
[1754714991264,5.61261716,178.17,178.15,5.16889775]
[1754714991459,0.03,178.19,178.16,5.82889775]
[1754714991669,0.03,178.19,178.17,5.82889775]
[1754714992165,0.03,178.19,178.17,5.10889775]
[1754714992375,0.73,178.19,178.17,5.10889775]
[1754714992664,0.73,178.19,178.15,0.78]
[1754714992665,5.61230216,178.18,178.16,5.10889775]
[1754714992862,5.61230216,178.18,178.16,5.82889775]
[1754714994758,5.6419872,178.19,178.16,5.82889775]
[1754714995466,6.3419872,178.19,178.15,0.06]
[1754714995670,0.7,178.18,178.15,5.16889775]
[1754714995859,0.7,178.18,178.16,5.10889775]
[1754714996167,5.6419872,178.19,178.15,0.78]
[1754714996368,6.3419872,178.19,178.16,5.10889775]
[1754714996963,6.3419872,178.19,178.15,0.78]
[1754714997174,6.3419872,178.19,178.16,5.10889775]
[1754714998461,6.3419872,178.19,178.15,0.78]
[1754714998661,6.3419872,178.19,178.15,5.88889775]
[1754714999674,0.7,178.18,178.15,0.06]
[1754715000349,0.7,178.17,178.15,0.06]
[1754715000554,5.13889775,178.19,178.15,0.06]
[1754715000768,0.7,178.16,178.15,0.06]
[1754715001681,6.31293219,178.16,178.15,0.06]
[1754715004275,5.61251194,178.18,178.15,0.73]
[1754715004458,5.61251194,178.18,178.15,5.83889775]
[1754715004859,32.30209814,178.19,178.15,5.16889775]
[1754715005061,26.0,178.17,178.16,0.67]
[1754715005666,0.03,178.19,178.16,5.77889775]
[1754715005870,0.03,178.19,178.18,5.10889775]
[1754715006080,0.03,178.19,178.18,5.77889775]
[1754715006584,0.03,178.19,178.18,5.10889775]
[1754715007084,0.03,178.19,178.18,5.77889775]
[1754715008888,0.03,178.19,178.18,5.10889775]
[1754715010385,0.03,178.19,178.18,5.77889775]
[1754715011071,0.03,178.19,178.18,11.39119991]
[1754715011285,0.03,178.19,178.18,5.77889775]
[1754715011663,0.03,178.19,178.18,0.67]
[1754715011862,0.03,178.19,178.18,5.77889775]
[1754715013087,0.03,178.19,178.18,11.39119991]
[1754715013663,0.03,178.19,178.18,16.50009766]
[1754715014289,0.03,178.21,178.2,10.2177955]
[1754715014776,0.03,178.21,178.2,10.8877955]
[1754715015082,0.03,178.21,178.2,16.49946777]
[1754715017474,0.03,178.21,178.2,10.8877955]
[1754715018704,0.03,178.21,178.2,51.1077955]
[1754715020879,0.03,178.21,178.2,50.4377955]
[1754715021084,0.03,178.21,178.2,51.1077955]
[1754715021287,0.03,178.21,178.2,50.4377955]
[1754715021487,0.03,178.21,178.2,51.1077955]
[1754715022886,0.03,178.21,178.2,56.71946777]
[1754715023685,0.03,178.23,178.22,31.10889775]
[1754715024006,0.03,178.25,178.22,31.10889775]
[1754715024195,0.03,178.25,178.24,5.10889775]
[1754715024396,0.03,178.25,178.24,45.30889775]
[1754715024703,0.03,178.25,178.24,45.97889775]
[1754715026501,0.03,178.25,178.24,45.30889775]
[1754715027480,0.69,178.25,178.24,5.10889775]
[1754715028005,0.69,178.25,178.24,45.30889775]
[1754715028888,0.03,178.25,178.24,45.30889775]
[1754715032409,0.03,178.25,178.24,45.97889775]
[1754715035387,0.03,178.25,178.24,40.87]
[1754715035589,0.03,178.25,178.24,45.97889775]
[1754715038011,0.03,178.27,178.24,45.97889775]
[1754715038191,0.03,178.27,178.26,5.10889775]
[1754715038394,0.03,178.27,178.26,45.28889775]
[1754715038614,0.03,178.27,178.26,45.98889775]
[1754715040103,0.71,178.27,178.2,1.26116722]
[1754715040312,0.71,178.27,178.25,5.10889775]
[1754715040697,0.71,178.27,178.26,40.16]
[1754715042197,6.31946878,178.27,178.26,40.16]
[1754715042521,5.63946878,178.27,178.26,45.26889775]
[1754715043421,5.63946878,178.27,178.26,40.16]
[1754715043612,5.63946878,178.27,178.26,45.26889775]
[1754715044200,0.03,178.27,178.26,45.26889775]
[1754715045209,0.71,178.27,178.26,40.16]
[1754715046613,6.31946878,178.27,178.26,40.16]
[1754715049225,6.31946878,178.27,178.24,40.16]
[1754715049421,0.68,178.26,178.24,40.16]
[1754715049621,0.68,178.25,178.24,40.16]
[1754715050013,6.29009817,178.25,178.24,40.16]
[1754715051624,5.61009817,178.25,178.24,40.16]
[1754715052215,5.60978346,178.26,178.24,40.16]
[1754715052418,6.28978346,178.26,178.24,40.16]
[1754715053229,6.29009817,178.25,178.24,40.16]
[1754715053712,5.61009817,178.25,178.24,40.16]
[1754715054109,6.29009817,178.25,178.24,40.16]
[1754715054430,5.61009817,178.25,178.24,40.16]
[1754715055218,5.60978346,178.26,178.24,40.16]
[1754715055506,6.28978346,178.26,178.24,40.16]
[1754715056216,5.60978346,178.26,178.24,40.86]
[1754715056728,5.60978346,178.26,178.24,0.7]
[1754715056927,5.60978346,178.26,178.25,40.14]
[1754715057431,6.28978346,178.26,178.25,40.14]
[1754715058001,5.60978346,178.26,178.25,40.14]
[1754715059426,5.63946878,178.27,178.25,40.14]
[1754715059629,5.63946878,178.27,178.25,40.84]
[1754715059805,5.63946878,178.27,178.26,0.7]
[1754715061531,0.03,178.27,178.25,45.24889775]
[1754715062419,0.03,178.27,178.25,45.94889775]
[1754715062731,0.03,178.27,178.26,5.80889775]
[1754715065538,0.74,178.27,178.25,0.06]
[1754715065729,0.74,178.27,178.26,40.12]
[1754715066849,5.63946878,178.27,178.26,40.12]
[1754715067219,6.34946878,178.27,178.26,40.12]
[1754715068723,6.34946878,178.27,178.25,0.06]
[1754715068929,0.71,178.26,178.25,0.06]
[1754715069526,5.63946878,178.27,178.25,0.06]
[1754715069844,6.34946878,178.27,178.25,0.06]
[1754715070349,0.71,178.26,178.25,0.06]
[1754715070532,5.81889775,178.26,178.25,0.06]
[1754715071046,11.42868121,178.26,178.25,0.06]
[1754715071222,6.31978346,178.26,178.25,0.06]
[1754715071419,11.42868121,178.26,178.23,0.06]
[1754715071619,26.0,178.24,178.23,0.06]
[1754715072140,31.81889775,178.24,178.23,0.06]
[1754715073020,37.42931067,178.24,178.23,0.06]
[1754715074342,31.61041292,178.24,178.23,0.06]
[1754715079454,5.61041292,178.24,178.23,0.06]
[1754715079663,5.61041292,178.24,178.23,0.75]
[1754715080048,6.32041292,178.24,178.23,0.06]
[1754715080662,5.61041292,178.24,178.23,0.06]
[1754715080870,6.32041292,178.24,178.23,0.06]
[1754715081163,37.42931067,178.24,178.23,0.06]
[1754715082162,32.32041292,178.24,178.23,0.06]
[1754715082344,37.42931067,178.24,178.23,0.06]
[1754715082546,52.53552624,178.24,178.23,1e-08]
[1754715085869,47.42662849,178.24,178.23,1e-08]
[1754715086041,52.53552624,178.24,178.23,1e-08]
[1754715087540,92.79552624,178.24,178.23,1e-08]
[1754715088457,15.10621557,178.23,178.19,0.06]
[1754715088645,15.81621557,178.23,178.19,0.06]
[1754715088847,0.71,178.22,178.19,0.06]
[1754715089153,5.81889775,178.22,178.19,0.06]
[1754715089461,26.0,178.21,178.19,0.75]
[1754715089664,26.0,178.21,178.19,5.85889775]
[1754715089845,26.0,178.21,178.2,0.69]
[1754715090154,24.74534298,178.24,178.2,0.69]
[1754715090456,24.74534298,178.24,178.19,5.16889775]
[1754715090457,31.61104253,178.22,178.21,0.69]
[1754715091260,31.61104253,178.22,178.19,0.75]
[1754715091466,31.61104253,178.22,178.2,0.69]
[1754715091771,31.61104253,178.22,178.19,0.06]
[1754715091772,36.71994028,178.22,178.19,0.06]
[1754715091946,0.71,178.21,178.19,0.06]
[1754715092144,5.81889775,178.21,178.19,0.06]
[1754715092871,5.61167227,178.2,178.19,0.06]
[1754715093671,10.72057002,178.2,178.19,0.06]
[1754715093847,5.61167227,178.2,178.19,0.06]
[1754715096063,5.61167227,178.2,178.19,0.71]
[1754715097248,5.61167227,178.2,178.19,0.06]
[1754715097763,5.61135738,178.21,178.19,0.06]
[1754715097962,5.61135738,178.21,178.19,0.71]
[1754715098170,26.0,178.2,178.19,0.71]
[1754715098747,5.61135738,178.21,178.19,0.71]
[1754715098748,31.61135738,178.21,178.19,0.71]